Cogmind - Beta 15 @@@ ROGUE MODE // 2025.09.10 @ 22:39:14 Player: konomiyu Result: Destroyed by Y-54 Guardian with Flak Gun Performance ------------- Evolutions (3) 1500 Regions Visited (9) 1800 Robots Destroyed (153) 765 Value Destroyed (4893) 4893 Prototype IDs (13) 260 Alien Tech Used (0) 0 Bonus (966) 966 TOTAL SCORE: 10184 Bonus ------- High Alert Combat Kills 208 Follower Combat Kills 58 Entered Garrisons 200 Entered DSFs 500 Cogmind --------- Core Integrity 0/700 Matter 153/300 Energy 100/100 System Corruption 1% Temperature Cool (21) Movement Core (750) Ox14 Location -7/Garrison Parts ------- > --- POWER (1) -------- (None) > --- PROPULSION (4) --- (None) > --- UTILITY (6) ------ High-capacity Storage Unit Signal Interpreter Advanced Targeting Computer > --- WEAPON (2) ------- Assault Cannon > --- INVENTORY (20) --- Heavy Ion Engine Heavy Ion Engine Improved Heat Sink Cooling System Huge Storage Unit Large Matter Pod (150) Signal Interpreter Hacking Suite Recalibrator Peak State ------------ > --- POWER ------------ Makeshift Power Source > --- PROPULSION ------- Advanced Treads Advanced Treads Advanced Treads Advanced Treads > --- UTILITY ---------- Large Storage Unit Signal Interpreter Advanced Targeting Computer Hacking Suite > --- WEAPON ----------- Flak Gun Flak Gun > --- INVENTORY -------- Ion Engine Cooling System Huge Storage Unit Large Matter Pod Signal Interpreter Targeting Computer ECM Suite Hardlight Generator Hacking Suite Recalibrator Flak Gun Flak Gun Light Cannon Missile Launcher Mining Laser [Rating: 35] Favorites ----------- Power Makeshift Power Source Engine Makeshift Power Source Propulsion Light Treads Treads Light Treads Utility Signal Interpreter Device Hardlight Generator Storage Large Storage Unit Processor Signal Interpreter Hackware Hacking Suite Weapon Flak Gun Energy Gun EM Pulse Gun Ballistic Gun Flak Gun Ballistic Cannon Light Cannon Launcher Missile Launcher Special Weapon Mining Laser Special Melee Weapon Datajack Build | -11 -10 -10 -10 -9 -8 -8 -7 -7 -7 ------- Run | Yrd Mat Min Exi Min Mat Sto Fac DSF Gar Slots Evolved 6 | . . . . . 4 . 2 . . Power . | . . . . . . . . . . Propulsion 2 | . . . . . 2 . . . . Utility 4 | . . . . . 2 . 2 . . Weapon . | . . . . . . . . . . Parts Attached 63 | 6 12 1 4 . 17 10 3 8 2 Power 9 | 1 2 . 1 . 1 2 . 1 1 Engine 9 | 1 2 . 1 . 1 2 . 1 1 Core . | . . . . . . . . . . Reactor . | . . . . . . . . . . Propulsion 20 | 2 1 . 2 . 7 3 . 5 . Treads 20 | 2 1 . 2 . 7 3 . 5 . Leg . | . . . . . . . . . . Wheel . | . . . . . . . . . . Hover . | . . . . . . . . . . Flight . | . . . . . . . . . . Utility 12 | 1 4 . . . 3 1 2 . 1 Device 3 | . . . . . . . 2 . 1 Storage 4 | 1 2 . . . . 1 . . . Processor 3 | . 2 . . . 1 . . . . Hackware 2 | . . . . . 2 . . . . Protection . | . . . . . . . . . . Artifact . | . . . . . . . . . . Weapon 22 | 2 5 1 1 . 6 4 1 2 . Energy Gun 2 | 2 . . . . . . . . . Energy Cannon . | . . . . . . . . . . Ballistic Gun 10 | . 3 . 1 . 4 . . 2 . Ballistic Cannon 4 | . . 1 . . . 2 1 . . Launcher 4 | . 1 . . . 1 2 . . . Special Weapon 1 | . . . . . 1 . . . . Impact Weapon . | . . . . . . . . . . Slashing Weapon . | . . . . . . . . . . Piercing Weapon . | . . . . . . . . . . Special Melee Weapon 1 | . 1 . . . . . . . . Unidentified Prototypes 2 | . . . . . . 2 . . . Parts Lost 32 | . 1 . . . 4 4 . 11 12 Power 3 | . . . . . . 1 . . 2 Propulsion 14 | . . . . . 2 3 . 6 3 Utility 4 | . . . . . . . . 2 2 Weapon 11 | . 1 . . . 2 . . 3 5 Highest Loss Streak 11 | . 1 . . . 2 3 . 9 11 To Critical Strikes . | . . . . . . . . . . Average Backups 13 | 2 10 15 15 15 14 17 17 10 13 Power 1 | . 1 1 1 1 . 1 3 1 2 Propulsion 1 | 1 2 2 3 2 . 2 3 . . Utility 7 | . 4 8 8 8 8 8 7 5 7 Weapon 3 | . 2 3 3 3 4 4 4 2 3 Tool/Special . | . . . . . . . . . . Unused Backups 19 | . 4 . . 1 6 . . . 8 Power 2 | . . . . . . . . . 2 Propulsion 2 | . 2 . . . . . . . . Utility 9 | . 1 . . 1 1 . . . 6 Weapon 6 | . 1 . . . 5 . . . . Tool/Special . | . . . . . . . . . . Average Slot Usage (%) 95 | . 91 100 100 100 98 99 98 74 66 Engine 11 | . 14 14 14 14 9 8 7 7 6 Treads 30 | . 28 28 28 28 34 35 30 20 17 Storage 11 | . 14 14 14 14 9 9 7 4 7 Processor 13 | . 5 14 14 14 16 18 15 15 15 Hackware 4 | . . . . . 10 9 7 . . Ballistic Gun 16 | . 22 18 14 14 17 13 9 8 9 Ballistic Cannon 3 | . . 9 14 13 . 1 5 3 . Peak Build Rating 35 | 6 8 8 14 15 35 33 35 35 26 Average Rating 19 | 3 6 8 8 14 30 30 34 24 21 On Entrance 17 | . 6 8 8 14 15 32 29 35 26 Naked Turns . | . . . . . . . . . . Heaviest Build 67 | 12 29 30 32 31 33 62 64 67 63 Greatest Support 88 | 40 40 40 40 40 88 86 82 82 60 Greatest Overweight (x) 6 | 3 . . . . . . . 6 1 Average Overweight (x) . | 1 . . . . . . . . . Largest Inventory Capacity 25 | 8 25 15 15 15 25 20 20 20 20 Average Capacity 15 | 7 11 15 15 15 15 19 20 13 20 Most Carried 20 | 6 15 15 15 15 15 20 18 18 15 Average Carried 14 | 3 10 14 15 14 14 17 17 10 13 Final Capacity 20 | 8 15 15 15 15 15 20 20 20 20 Final Carried 19 | 4 15 15 15 15 14 19 18 15 9 Class Distribution -------------------- 84% | Mutant 11% | Scavenger-Mutant 4% | Hacker-Mutant Dominant Class ---------------- Mutant | -10/Materials Mutant | -10/Mines Mutant | -10/Exiles Mutant | -9/Mines Mutant | -8/Materials Mutant | -8/Storage Mutant | -7/Factory Scavenger-Mutant | -7/DSF Scavenger-Mutant | -7/Garrison Resources | -11 -10 -10 -10 -9 -8 -8 -7 -7 -7 ----------- Run | Yrd Mat Min Exi Min Mat Sto Fac DSF Gar Matter Collected 4607 | 168 683 290 159 63 1431 945 . 799 69 Remotely . | . . . . . . . . . . Salvage Created 4999 | . 754 169 94 47 1702 1424 . 575 234 Parts 253 | . 52 14 4 3 81 71 . 21 7 Haulers Intercepted 13 | . 2 . . . 6 5 . . . Recyclers Shooed 3 | . 1 . . . 1 1 . . . Parts Field Recycled . | . . . . . . . . . . Retrieved Matter . | . . . . . . . . . . Parts Self-Destructed . | . . . . . . . . . . Prevented . | . . . . . . . . . . Kills | -11 -10 -10 -10 -9 -8 -8 -7 -7 -7 ------- Run | Yrd Mat Min Exi Min Mat Sto Fac DSF Gar Combat Hostiles Destroyed 115 | . 19 8 2 1 39 29 . 10 7 Guns 76 | . 13 5 . 1 39 11 . 6 1 Cannons 12 | . . 3 2 . . 3 . 4 . AOE 27 | . 6 . . . . 15 . . 6 Classes Destroyed 15 | . 6 . 1 1 4 2 . 1 . Worker 4 | . . . . 1 2 1 . . . Builder 3 | . . . . . 2 1 . . . Hauler 13 | . 2 . . . 6 5 . . . Recycler 3 | . 1 . . . . 2 . . . Operator 6 | . 2 . . . 3 1 . . . Watcher 9 | . 3 . . . 4 2 . . . Swarmer 23 | . 9 6 . . 6 . . 2 . Grunt 56 | . 10 2 . 1 21 13 . 4 5 Brawler 5 | . . . . . . 4 . . 1 Duelist 3 | . . . . . 1 1 . 1 . Protector 3 | . . . . . . 3 . . . Sentry 17 | . . . . . 9 7 . . 1 Specialist 1 | . . . . . . . . 1 . Hunter 5 | . . . 2 . 1 1 . 1 . Heavy 2 | . . . . . 1 . . 1 . Best Kill Streak 11 | . 3 3 2 2 7 11 . 3 6 Combat Bots Only 10 | . 3 3 2 1 5 10 . 3 6 Max Kills in Single Turn 3 | . 3 1 1 2 1 3 . 1 2 Gunslinging . | . . . . . . . . . . Exploded 3 | . 3 . . . . 3 . . 2 Melee . | . . . . . . . . . . Uniques/NPCs Destroyed . | . . . . . . . . . . Combat | -11 -10 -10 -10 -9 -8 -8 -7 -7 -7 -------- Run | Yrd Mat Min Exi Min Mat Sto Fac DSF Gar Hostile Shots Fired 654 | . 63 34 . 1 134 62 . 134 226 Missed 205 | . 17 10 . 1 48 13 . 30 86 Hits 449 | . 46 24 . . 86 49 . 104 140 Melee 8 | . . . . . 3 2 . 1 2 Projectile 441 | . 46 24 . . 83 47 . 103 138 Critical Strikes 22 | . 2 . . . 10 2 . 8 . Damage Taken 5866 | . 475 222 . . 1404 842 . 1623 1300 Core 1106 | . 100 32 . . 185 87 . 276 426 Absorbed by Shields 360 | . . . . . . . . 352 8 Regen/Repaired (Parts) 40 | . 4 . . . 36 . . . . Core Remaining (%) 65 | 100 . . . 47 . 50 . . . Volleys Fired 369 | . 78 17 15 1 122 59 . 61 16 Largest 2 | . 2 2 2 2 2 2 . 2 2 Hottest 100 | . 80 50 50 58 100 77 . 80 64 Shots Fired 698 | . 150 34 31 3 240 114 . 98 28 Gun 586 | . 144 24 15 1 233 80 . 71 18 Cannon 74 | . . 10 16 . 3 14 . 27 4 Launcher 34 | . 6 . . 2 . 20 . . 6 Special 4 | . . . . . 4 . . . . Kinetic 629 | . 113 34 31 1 236 94 . 98 22 Thermal 4 | . . . . . 4 . . . . Explosive 31 | . 6 . . 2 . 17 . . 6 Electromagnetic 34 | . 31 . . . . 3 . . . Robot Hit Streak 20 | . 8 5 7 6 19 20 . 12 6 Robot Miss Streak 20 | . 4 2 1 . 20 8 . 4 2 Penetration Max 1 | . . . . . . . . 1 . Secondary Targets 3 | . . 1 . . 1 1 . . . Max Gunslinging Chain 1 | . . 1 . . 1 1 . . . Shots Hit Robots 499 | . 75 19 22 2 210 79 . 70 22 Core Hits 512 | . 40 9 5 3 267 134 . 25 29 Critical Kills . | . . . . . . . . . . Critical Parts Destroyed 3 | . . . . . . . . 3 . Critical Strikes 5 | . . 1 . . . . . 4 . Destroy 3 | . . . . . . . . 3 . Blast 2 | . . 1 . . . . . 1 . Melee Attacks 1 | . 1 . . . . . . . . Impact . | . . . . . . . . . . Slashing . | . . . . . . . . . . Piercing . | . . . . . . . . . . Sneak Attacks 1 | . 1 . . . . . . . . Combat Hostiles . | . . . . . . . . . . Follow-up Attacks . | . . . . . . . . . . Damage Inflicted 11909 | . 1381 316 299 157 3859 3219 . 1513 1165 Guns 7633 | . 979 192 130 23 3842 1252 . 904 311 Cannons 1157 | . . 124 169 . 17 178 . 606 63 Explosions 3116 | . 402 . . 134 . 1789 . . 791 Melee . | . . . . . . . . . . Ramming 3 | . . . . . . . . 3 . Kinetic 8614 | . 803 316 299 23 3859 1430 . 1510 374 Thermal 20 | . 20 . . . . . . . . Explosive 2802 | . 382 . . 134 . 1495 . . 791 Electromagnetic 470 | . 176 . . . . 294 . . . Impact . | . . . . . . . . . . Slashing . | . . . . . . . . . . Piercing . | . . . . . . . . . . Highest Corruption 11 | . 2 2 2 2 2 11 . . 1 Average Corruption 3 | . 1 2 2 2 2 7 . . 1 Corruption Purged . | . . . . . . . . . . Corruption Blocked . | . . . . . . . . . . Effects 91 | . 2 15 16 5 3 50 . . . Message Errors 23 | . . 5 5 2 . 11 . . . Matter Fused 20 | . 1 3 1 2 1 12 . . . Heat Flow Errors 10 | . 1 2 1 . . 6 . . . Energy Discharges 13 | . . 1 5 . 2 5 . . . Parts Rejected 1 | . . . . . . 1 . . . Data Loss (minor) 9 | . . 2 2 . . 5 . . . Data Loss (major) 7 | . . 2 1 . . 4 . . . Misfires 5 | . . . 1 1 . 3 . . . Alerts 1 | . . . . . . 1 . . . Weapon Failures 2 | . . . . . . 2 . . . Overload Shots . | . . . . . . . . . . Overflow Damage 5 | . . . . . . . . . 5 Projectiles . | . . . . . . . . . . Explosions 5 | . . . . . . . . . 5 Melee . | . . . . . . . . . . Knockbacks 11 | . . 2 3 . . 1 . 5 . Impact . | . . . . . . . . . . Kinetic 11 | . . 2 3 . . 1 . 5 . Secondary . | . . . . . . . . . . Self-Inflicted Damage 130 | . 44 . . . . 32 . . 54 Shots 6 | . 2 . . . . 1 . . 3 Rammed 1 | . . . . . . . . 1 . Targets Rammed 1 | . . . . . . . . 1 . Kicked . | . . . . . . . . . . Crushed . | . . . . . . . . . . Highest Temperature 295 | . 225 146 167 42 75 258 . 295 42 Average Temperature 51 | . 52 54 75 28 18 62 . 150 16 Received Heat Transfer 1909 | . 120 36 . . 585 351 . 379 438 Siege Activations . | . . . . . . . . . . Martial Activations . | . . . . . . . . . . Shielding Activations . | . . . . . . . . . . Robots Disrupted . | . . . . . . . . . . Combat Hostiles . | . . . . . . . . . . Robots Corrupted . | . . . . . . . . . . Combat Hostiles . | . . . . . . . . . . Parts Fried 2 | . . . . . . 2 . . . Impact Corruptions . | . . . . . . . . . . Robots Melted . | . . . . . . . . . . Combat Hostiles . | . . . . . . . . . . Parts Melted . | . . . . . . . . . . Heat Transferred 50 | . 50 . . . . . . . . Parts Sabotaged . | . . . . . . . . . . Parts Stolen . | . . . . . . . . . . Parts Stripped . | . . . . . . . . . . Power Chain Reactions 1 | . 1 . . . . . . . . Alert | -11 -10 -10 -10 -9 -8 -8 -7 -7 -7 ------- Run | Yrd Mat Min Exi Min Mat Sto Fac DSF Gar Maximum Alert Level 2 | . . . . . 2 2 1 1 2 Low Security (%) 62 | 100 100 100 . 100 55 11 . 27 . Level 1 25 | . . . . . 31 47 100 72 87 Level 2 12 | . . . . . 13 41 . . 12 Level 3 . | . . . . . . . . . . Level 4 . | . . . . . . . . . . Level 5 . | . . . . . . . . . . High Security . | . . . . . . . . . . Max Security . | . . . . . . . . . . Sterilizations 1 | . . . . . . . . 1 . Peak Influence 665 | . 178 122 . 68 509 665 292 368 434 Initial 292 | . . 27 . . . 213 292 197 276 Average 185 | . 68 34 . 14 218 389 287 245 330 Influence Increases 3695 | . 567 280 45 78 1176 1033 . 281 235 Destroy 0b10 Robot/C 2280 | . 380 160 40 40 780 540 . 200 140 Destroy 0b10 Robot/NC 225 | . 40 . 5 5 85 75 . 15 . Destroy Leader 564 | . 80 30 . 10 230 144 . 50 20 Allied During Kill 9 | . . . . 3 . 6 . . . Successful Hack 114 | . 11 . . 10 64 29 . . . Disable Machine 150 | . 15 15 . . . 120 . . . Destroy Structure 188 | . 41 . . 10 2 89 . 1 45 Lose Combat Pursuer 165 | . . 75 . . 15 30 . 15 30 Influence Decreases 3304 | . 495 352 45 78 671 894 362 195 212 Entered New Map 866 | . . 45 . . . 292 352 85 92 Time Decay 2078 | . 485 307 45 78 631 522 10 . . Lost Part 320 | . 10 . . . 40 40 . 110 120 Lost Ally 40 | . . . . . . 40 . . . Squads Dispatched 14 | . 3 . . . 6 3 . 2 . Investigation 3 | . 1 . . . 2 . . . . Extermination . | . . . . . . . . . . Reinforcement 7 | . 2 . . . 3 . . 2 . Assault 3 | . . . . . . 3 . . . Garrison 1 | . . . . . 1 . . . . Intercept . | . . . . . . . . . . Searches Triggered . | . . . . . . . . . . Construction Impeded . | . . . . . . . . . . Haulers Reinforced . | . . . . . . . . . . Active Scanning Responses . | . . . . . . . . . . Cargo Convoy Interrupts . | . . . . . . . . . . Stealth | -11 -10 -10 -10 -9 -8 -8 -7 -7 -7 --------- Run | Yrd Mat Min Exi Min Mat Sto Fac DSF Gar Distress Signals 7 | . 4 . . . 1 2 . . . Communications Jammed . | . . . . . . . . . . Distress Signals . | . . . . . . . . . . Times Spotted 166 | . 35 12 . 2 53 42 . 12 10 Peak Tracking Total 11 | . 5 3 . 2 6 11 . 3 10 Tactical Retreats 6 | . . 2 . . 1 1 . 1 1 Traps | -11 -10 -10 -10 -9 -8 -8 -7 -7 -7 ------- Run | Yrd Mat Min Exi Min Mat Sto Fac DSF Gar Traps Triggered 12 | . 4 . . . 2 6 . . . Indirectly . | . . . . . . . . . . Trap Hack Attempts . | . . . . . . . . . . Triggered . | . . . . . . . . . . Disarmed . | . . . . . . . . . . Reprogrammed . | . . . . . . . . . . Reused . | . . . . . . . . . . Traps Extracted . | . . . . . . . . . . Installed . | . . . . . . . . . . Triggered . | . . . . . . . . . . Machines | -11 -10 -10 -10 -9 -8 -8 -7 -7 -7 ---------- Run | Yrd Mat Min Exi Min Mat Sto Fac DSF Gar Machines Disabled 11 | . 1 1 . . . 8 . 1 . Max in Single Turn 2 | . 1 1 . . . 2 . 1 . Garrison Access 1 | . . . . . 1 . . . . Machines Repaired . | . . . . . . . . . . Machines Dismantled . | . . . . . . . . . . Machines Sabotaged . | . . . . . . . . . . Overloaded Fab Kills . | . . . . . . . . . . Hacking | -11 -10 -10 -10 -9 -8 -8 -7 -7 -7 --------- Run | Yrd Mat Min Exi Min Mat Sto Fac DSF Gar Machines Accessed 27 | . 7 . . 1 11 7 1 . . Terminals 22 | . 5 . . 1 8 7 1 . . Fabricators . | . . . . . . . . . . Repair Stations 2 | . 1 . . . 1 . . . . Recycling Units 1 | . 1 . . . . . . . . Scanalyzers 1 | . . . . . 1 . . . . Garrison Access 1 | . . . . . 1 . . . . Total Hacks 68 | . 17 . . 5 23 22 1 . . Successful 36 | . 8 . . 3 15 9 1 . . Failed 30 | . 9 . . 2 7 12 . . . Catastrophic 6 | . 1 . . 1 3 1 . . . Database Lockouts 2 | . . . . . 1 1 . . . Manual 49 | . 14 . . 6 19 10 . . . Terminals 59 | . 12 . . 5 19 22 1 . . Fabricators . | . . . . . . . . . . Repair Stations 4 | . 2 . . . 2 . . . . Recycling Units 3 | . 3 . . . . . . . . Scanalyzers 1 | . . . . . 1 . . . . Garrison Access 1 | . . . . . 1 . . . . Terminal Hacks 28 | . 4 . . 3 11 9 1 . . Record 7 | . . . . 2 4 1 . . . Robot Analysis 5 | . 3 . . . 1 1 . . . Prototype ID Bank 5 | . . . . . 4 1 . . . Open Door 2 | . . . . . . 2 . . . Open DSF 1 | . . . . . . . 1 . . Branch Access Points 2 | . . . . 1 . 1 . . . Emergency Access Points 1 | . . . . . . 1 . . . Scanalyzer Index 1 | . . . . . . 1 . . . Maintenance Status 2 | . 1 . . . . 1 . . . Patrol Status 1 | . . . . . 1 . . . . Registered Prototypes 1 | . . . . . 1 . . . . Fabricator Hacks . | . . . . . . . . . . Repair Station Hacks 4 | . 2 . . . 2 . . . . Scan Component 2 | . 1 . . . 1 . . . . Repair 2 | . 1 . . . 1 . . . . Recycling Unit Hacks 2 | . 2 . . . . . . . . Report Inventory 1 | . 1 . . . . . . . . Retrieve Components 1 | . 1 . . . . . . . . Scanalyzer 1 | . . . . . 1 . . . . Insert Component 1 | . . . . . 1 . . . . Garrison Access Hacks 1 | . . . . . 1 . . . . Seal Access 1 | . . . . . 1 . . . . Unauthorized Hacks . | . . . . . . . . . . Terminals . | . . . . . . . . . . Fabricators . | . . . . . . . . . . Repair Stations . | . . . . . . . . . . Recycling Units . | . . . . . . . . . . Scanalyzers . | . . . . . . . . . . Garrison Access . | . . . . . . . . . . Data Cores Recovered 3 | . . . . . 2 1 . . . Used 1 | . . . . . 1 . . . . Hacking Detections 20 | . 7 . . 1 8 4 . . . Full Trace Events 2 | . . . . . 1 1 . . . Feedback Events . | . . . . . . . . . . Feedback Blocked . | . . . . . . . . . . Robot Schematics Acquired . | . . . . . . . . . . Robots Built . | . . . . . . . . . . Authchips . | . . . . . . . . . . Time . | . . . . . . . . . . Total Robot Build Rating . | . . . . . . . . . . Part Schematics Acquired . | . . . . . . . . . . Parts Built . | . . . . . . . . . . Authchips . | . . . . . . . . . . Time . | . . . . . . . . . . Total Part Build Rating . | . . . . . . . . . . Parts Repaired 2 | . 1 . . . 1 . . . . Time 58 | . 36 . . . 22 . . . . Parts Recycled . | . . . . . . . . . . Recycled Matter . | . . . . . . . . . . Retrieved Matter . | . . . . . . . . . . Retrieved Components 10 | . 10 . . . . . . . . Parts Scanalyzed . | . . . . . . . . . . Part Schematics Acquired . | . . . . . . . . . . Parts Damaged . | . . . . . . . . . . Bothacking | -11 -10 -10 -10 -9 -8 -8 -7 -7 -7 ------------ Run | Yrd Mat Min Exi Min Mat Sto Fac DSF Gar Used RIF Installer . | . . . . . . . . . . Robots Hacked . | . . . . . . . . . . Non-combat . | . . . . . . . . . . Combat . | . . . . . . . . . . Robot Hacks Applied . | . . . . . . . . . . Relay Couplers Released . | . . . . . . . . . . Fabnet Peak Effective % . | . . . . . . . . . . Robots Rewired . | . . . . . . . . . . Allies Hacked . | . . . . . . . . . . Hacks Repelled . | . . . . . . . . . . Allies | -11 -10 -10 -10 -9 -8 -8 -7 -7 -7 -------- Run | Yrd Mat Min Exi Min Mat Sto Fac DSF Gar Total Allies 3 | . . . . 1 . 2 . . . Largest Group 2 | . . . . 1 . 2 . . . Highest-Rated Group 62 | . . . . 31 . 62 . . . Highest-Rated Ally 31 | . . . . 31 . 31 . . . Initial Warlord ECA Mod 10 | . . . . . . . . . 10 Total Orders . | . . . . . . . . . . Ally Attacks 17 | . . . . 2 . 15 . . . Total Damage 228 | . . . . 22 . 206 . . . Kills 2 | . . . . 1 . 1 . . . Allies Corrupted . | . . . . . . . . . . Allies Melted . | . . . . . . . . . . Intel | -11 -10 -10 -10 -9 -8 -8 -7 -7 -7 ------- Run | Yrd Mat Min Exi Min Mat Sto Fac DSF Gar Active Infowar (turns) 587 | . 162 . . . . . 34 329 62 Sensors 363 | . . . . . . . 34 329 . T.N.C. 162 | . 162 . . . . . . . . ECM 62 | . . . . . . . . . 62 Robot Analysis Total 5 | . 3 . . . 1 1 . . . Derelict Logs Recovered 2 | . . 1 . 1 . . . . . Drone Launches . | . . . . . . . . . . Drone Recoveries . | . . . . . . . . . . Exploration | -11 -10 -10 -10 -9 -8 -8 -7 -7 -7 ------------- Run | Yrd Mat Min Exi Min Mat Sto Fac DSF Gar Turns Passed 8904 | 81 1701 1087 1043 306 2637 1448 35 452 114 Spaces Moved 4552 | 40 850 636 621 185 1293 743 19 137 28 Core 25 | 24 . . . . . . . 1 . Treads 4527 | 16 850 636 621 185 1293 743 19 136 28 Legs . | . . . . . . . . . . Wheels . | . . . . . . . . . . Hover . | . . . . . . . . . . Flight . | . . . . . . . . . . Fastest Speed 50 | 50 160 160 160 160 145 148 156 156 160 Average Speed 157 | 161 160 160 160 160 151 153 156 184 217 Slowest Speed 400 | 200 160 160 160 160 160 156 156 400 240 Overloaded Moves . | . . . . . . . . . . Propulsion Burnouts . | . . . . . . . . . . Robots Hopped . | . . . . . . . . . . Potential Cave-ins . | . . . . . . . . . . Cave-ins Triggered . | . . . . . . . . . . Exploration Rate (%) 60 | 5 98 87 91 42 94 92 1 87 9 Regions Visited 9 Branch Regions 4 Pre-discovered Areas 1 | . . 1 . . . . . . . Known Exits Taken 7 | . 1 1 1 1 1 1 1 . . Unknown Exits Taken 1 | 1 . . . . . . . . . Scrap Searched 3 | . . 2 . 1 . . . . . Spaces Dug 6 | . . . . . 4 2 . . . Terrain Destroyed 223 | . 53 . . 14 4 99 . 1 52 Melee . | . . . . . . . . . . Projectile 10 | . . . . . 4 4 . . 2 AOE 212 | . 53 . . 14 . 95 . . 50 Terrain Rammed . | . . . . . . . . . . Walls Destroyed . | . . . . . . . . . . Machines Disabled . | . . . . . . . . . . Actions | -11 -10 -10 -10 -9 -8 -8 -7 -7 -7 --------- Run | Yrd Mat Min Exi Min Mat Sto Fac DSF Gar Total 5585 | 57 1041 672 643 194 1732 934 23 237 52 Wait 418 | 2 52 15 . 3 259 82 . 5 . Move 4543 | 39 849 635 620 184 1292 742 18 136 28 Hop . | . . . . . . . . . . Pick Up 94 | 10 26 2 . 2 17 17 1 19 . Fast Attach 4 | . 1 . . . 3 . . . . Attach 44 | 6 5 . . . 8 8 2 9 6 Detach 5 | . 3 . . . 1 1 . . . Swap 62 | . 14 1 4 2 16 17 2 4 2 Drop 44 | . 12 2 4 2 14 8 . 2 . Fire 369 | . 78 17 15 1 122 59 . 61 16 Melee 1 | . 1 . . . . . . . . Ram . | . . . . . . . . . . Kick . | . . . . . . . . . . Crush 1 | . . . . . . . . 1 . Escape Stasis . | . . . . . . . . . . Rewire . | . . . . . . . . . . Trap . | . . . . . . . . . . Miscellaneous . | . . . . . . . . . . Route ------- -11/Scrapyard -10/Materials (discovered 4 exits: *Mat x3 / *Min) -10/Mines (discovered 2 exits: *Mat / *Exi) -10/Exiles (discovered 2 exits: *Min x2) -9/Mines -8/Materials (discovered 5 exits: *Fac x3 / *Sto x2) -8/Storage (discovered 2 exits: *Fac / Rec) -7/Factory -7/DSF -7/Garrison History --------- Turn | Location | Event 29 | -11/Scrapyard | Discovered new exit (range 14) 82 | -11/Scrapyard | Entered Materials 327 | -10/Materials | Build established: Mutant 445 | -10/Materials | Discovered new exit (range 8) 664 | -10/Materials | Repaired Corrupted Transport Network Coupler 975 | -10/Materials | Discovered new exit (range 5) 1364 | -10/Materials | Identified exit to Mines 1460 | -10/Materials | Discovered new exit (range 16) 1646 | -10/Materials | Discovered new exit (range 16) 1783 | -10/Materials | Entered Mines 1798 | -10/Mines | Learned Materials stockpile data 1805 | -10/Mines | Met a Derelict bent on vengeance 1922 | -10/Mines | Discovered new exit (range 10) 1936 | -10/Mines | Identified exit to Materials 2152 | -10/Mines | Deemed a non-threat by the Exiles lab entrance 2152 | -10/Mines | Discovered new exit (range 5) 2157 | -10/Mines | Identified exit to Exiles 2489 | -10/Mines | Learned location of Storage (-8) 2545 | -10/Mines | Core integrity fell below 50% 2870 | -10/Mines | Entered Exiles 2870 | -10/Exiles | Found Exiles lab destroyed 2894 | -10/Exiles | Discovered new exit (range 15) 2915 | -10/Exiles | Identified exit to Mines 3891 | -10/Exiles | Discovered exit to Mines (range 14) 3913 | -10/Exiles | Entered Mines 3916 | -9/Mines | Received a Mining Laser from a helpful Derelict 3979 | -9/Mines | Learned Materials terminal intel 4072 | -9/Mines | Discovered new exit (range 16) 4094 | -9/Mines | Identified exit to Materials 4219 | -9/Mines | Entered Materials 4219 | -8/Materials | Evolved 4 slots: Propulsion x2, Utility x2 4221 | -8/Materials | Loaded intel: 12 terminal locations 4389 | -8/Materials | Discovered new exit (range 4) 4507 | -8/Materials | Build established: Hacker-Mutant 4783 | -8/Materials | Garrison activated, responded to threat 4906 | -8/Materials | Build established: Mutant 5033 | -8/Materials | Discovered new exit (range 11) 5047 | -8/Materials | Identified exit to Factory 5185 | -8/Materials | Discovered exit to Factory (range 14) 6270 | -8/Materials | Identified exit to Storage 6559 | -8/Materials | Discovered exit to Factory (range 6) 6586 | -8/Materials | Central database locked down 6708 | -8/Materials | Discovered exit to Storage (range 15) 6779 | -8/Materials | Repaired Mak. Power Source 6856 | -8/Materials | Entered Storage 7622 | -8/Storage | Met a pair of Derelict thieves 7654 | -8/Storage | System corruption reached 10% 7668 | -8/Storage | Identified exit to Recycling 7735 | -8/Storage | Destroyed 10 combat bots 7740 | -8/Storage | Lost 3 parts (1p2n) 8019 | -8/Storage | Central database locked down 8027 | -8/Storage | Build established: Scavenger-Mutant 8049 | -8/Storage | Discovered exit to Factory (range 16) 8056 | -8/Storage | First assault squad dispatched 8304 | -8/Storage | Entered Factory 8304 | -7/Factory | Evolved 2 slots: Utility x2 8337 | -7/Factory | Identified exit to DSF 8339 | -7/Factory | Entered DSF 8359 | -7/DSF | Additional patrols routed to DSF 8470 | -7/DSF | Lost 9 parts (5n1u3w) 8704 | -7/DSF | Sterilization system engaged 8724 | -7/DSF | Ambient heat levels rising (+10) 8739 | -7/DSF | Ambient heat levels rising (+10) 8743 | -7/DSF | Discovered new exit (range 15) 8754 | -7/DSF | Ambient heat levels rising (+10) 8769 | -7/DSF | Ambient heat levels rising (+10) 8784 | -7/DSF | Ambient heat levels rising (+10) 8789 | -7/DSF | Identified exit to Garrison 8791 | -7/DSF | Entered Garrison 8883 | -7/Garrison | Core integrity fell below 50% 8893 | -7/Garrison | Core integrity fell below 20% 8905 | -7/Garrison | Destroyed by Y-54 Guardian with Flak Gun Last Messages --------------- 08876_ Slug penetrates B-48 Gladiator. 08876_ G-47 Trooper destroyed. 08876_ Lgt. Treads destroyed. 08879_ The unstable cave ceiling collapses. 08880_ Imp. Deuterium Engine destroyed. 08880_ Missile Launcher destroyed. 08881_ The unstable cave ceiling collapses. 08882_ Lgt. Treads destroyed. 08884_ ECM Suite destroyed. 08884_ System corrupted by crushing effect (+1). 08886_ G-47 Trooper destroyed. 08886_ B-48 Gladiator destroyed. 08889_ Missile Launcher destroyed. 08889_ Destroyed Missile Launcher. 08890_ Flak Gun destroyed. 08894_ Slug penetrates Y-54 Guardian. 08895_ Hvy. Ion Engine destroyed. 08896_ Gauss Rifle destroyed. 08901_ The unstable cave ceiling collapses. 08902_ Aluminum Leg crushed. Map ----- +----------------------------------------------------+ | ?????????????????????????????????????????????????? | | ?????????????????????????????????????????????????? | | ?????????????????????????????????????????????????? | | ?????????????????????????????????????????????????? | | ?????????????????????????????????????????????????? | | ?????????????????????????????????????????????????? | | ?????????????????????????????????????????????????? | | ?????????????????????????????????????????????????? | | ?????????????????????????????????????????????????? | | ?????????????????????????????????????????????????? | | ?????????????????????????????????????????????????? | | ?????????????????????????????????????????????????? | | ?????????????????????????????????????????????????? | | ?????????????????????????????????????????????????? | | ?????????????????????????????????????????????????? | | ?????????????????????????????????????????????????? | | ?????????????????????????????????????????????????? | | ?????????????????????????????????????????????????? | | ????????????????????????###??????????????????????? | | ???????????????????????? #??????????????????????? | | ????????????????????????# #??????????????????????? | | ????????????????????????# ###?#??????????????????# | | ????????????????????????# # # ###????????????????# | | ???????????????# ###### ################## | | ???????????????# % | | ???????????????# @ Y [ | | ???????????????# g Y [ | | ???????????????######### # % ######### ######## | | ??????????????????????? % #???????###??????? | | ?????????????????????? = ###????????????????? | | ?????????????????????# g ## #??????????????????? | | ?????????????????????# #? ??????????????????? | | ?????????????????????# ##??"#?????????????????? | | ?????????????????????## %=%?????????????????????? | | ??????????????????????# ?????????????????????? | | ??????????????????????## #?????????????????????? | | ???????????????????????## ##?????????????????????? | | ????????????????????????? ???????????????????????? | | ?????????????????????????#???????????????????????? | | ?????????????????????????????????????????????????? | | ?????????????????????????????????????????????????? | | ?????????????????????????????????????????????????? | | ?????????????????????????????????????????????????? | | ?????????????????????????????????????????????????? | | ?????????????????????????????????????????????????? | | ?????????????????????????????????????????????????? | | ?????????????????????????????????????????????????? | | ?????????????????????????????????????????????????? | | ?????????????????????????????????????????????????? | | ?????????????????????????????????????????????????? | +----------------------------------------------------+ Best States ------------- Heat Dissipation 34 Energy Generation 16 Energy Capacity 290 Matter Stores 300 Matter Capacity 300 Sight Range 16 Robot Scan Range 15 Terrain Scan Density 10 ECM Strength 1 Evasion (%) 40 Targeting Accuracy 8 Recoil Reduction 4 Offensive Hacking 20 Item Schematics ----------------- None Robot Schematics ------------------ None Fabricated ------------ Nothing Repaired ---------- Transport Network Coupler | 80% | -10/Materials | Corrupted Mak. Power Source | 28% | -8/Materials Alien Tech Used ----------------- None Achievements -------------- More Dakka Please Challenges ------------ None Game ------ Seed WaveShieldBallwheel Manual? 0 Play Time 01:30:19 Cumulative 14.9 hours Start 2025.09.10 @ 06:10:30 End 2025.09.10 @ 22:39:14 Sessions 3 Manual Loads 0 Difficulty Rogue Special Mode None Game No. 19 Rogue 19 Adventurer 0 Explorer 0 Win Type - Total 0 Types 0/0/0/0/0/0/0/0/0/0 Lore% 10 Gallery% 13 Achievement% 16 Wizard Run 0 Options --------- Layout 1 ASCII 0 Keyboard 0 Movement Mouse Keybinds 0 Fullscreen 2 Font 24/Smallcaps Map View 50x35 Zoom Use 0% Tactical HUD 1 Map Filters NONE Filters NONE Steam 1 RUN: 21c14138-0d70-46c9-b7c9-2a642e378698